fUSD/lending_fUSD_20250720
["ID","MTS","AMOUNT","RATE_DAILY","PERIOD"]
[373477436,1753019467343,-480.0,0.00019397,2]
[373477437,1753019467353,-480.0,0.00019397,2]
[373477438,1753019467363,-480.0,0.00019397,2]
[373477439,1753019467373,-480.0,0.00019397,2]
[373477440,1753019467383,-480.0,0.00019397,2]
[373477441,1753019467394,-480.0,0.00019397,2]
[373477442,1753019467403,-480.0,0.00019397,2]
[373477443,1753019467412,-480.0,0.00019397,2]
[373477444,1753019467422,-151.0,0.00019397,2]
[373477445,1753019467431,-1194.6,0.00019397,2]
[373477446,1753019467442,-828.22,0.00019397,2]
[373477447,1753019467455,-480.0,0.00019397,2]
[373477448,1753019467465,-1794.49,0.00019397,2]
[373477449,1753019467474,-480.0,0.00019397,2]
[373477450,1753019467484,-480.0,0.00019397,2]
[373477451,1753019467494,-1041.33,0.00019397,2]
[373477452,1753019467503,-151.0,0.00019397,2]
[373477453,1753019467513,-1596.73,0.00019397,2]
[373477454,1753019467523,-480.0,0.00019397,2]
[373477455,1753019467533,-480.0,0.00019397,2]
[373477456,1753019467542,-480.0,0.00019397,2]
[373477457,1753019467551,-480.0,0.00019397,2]
[373477458,1753019467561,-480.0,0.00019397,2]
[373477459,1753019467571,-4638.84,0.00019397,2]
[373477460,1753019467580,-480.0,0.00019397,2]
[373477461,1753019467590,-630.93,0.00019397,2]
[373477462,1753019467600,-480.0,0.00019397,2]
[373477463,1753019467609,-480.0,0.00019397,2]
[373477464,1753019467619,-480.0,0.00019397,2]
[373477465,1753019467629,-480.0,0.00019397,2]
[373477466,1753019467640,-480.0,0.00019397,2]
[373477467,1753019467649,-480.0,0.00019397,2]
[373477468,1753019467657,-1777.66,0.00019397,2]
[373477469,1753019467667,-480.0,0.00019397,2]
[373477470,1753019467676,-151.0,0.00019397,2]
[373477471,1753019467977,-556.83,0.00019397,2]
[373477472,1753019467988,-1897.84,0.00019397,2]
[373477473,1753019467997,-1256.18,0.00019397,2]
[373477474,1753019468006,-2882.58,0.00019397,2]
[373477475,1753019468016,-480.0,0.00019397,2]
[373477476,1753019468026,-979.84,0.00019397,2]
[373477477,1753019468036,-480.0,0.00019397,2]
[373477478,1753019468046,-480.0,0.00019397,2]
[373477479,1753019468056,-420.0,0.00019397,2]
[373477480,1753019468065,-480.0,0.00019397,2]
[373477481,1753019468076,-480.0,0.00019397,2]
[373477482,1753019468086,-480.0,0.00019397,2]
[373477483,1753019468095,-707.99,0.00019397,2]
[373477484,1753019468105,-574.55,0.00019397,2]
[373477485,1753019468115,-38134.22,0.00019397,2]
[373477486,1753019468125,-480.0,0.00019397,2]
[373477487,1753019468135,-151.0,0.00019397,2]
[373477488,1753019468145,-480.0,0.00019397,2]
[373477489,1753019468155,-480.0,0.00019397,2]
[373477490,1753019468164,-480.0,0.00019397,2]
[373477491,1753019468173,-1106.08,0.00019397,2]
[373477492,1753019468182,-480.0,0.00019397,2]
[373477493,1753019468192,-480.0,0.00019397,2]
[373477494,1753019468201,-480.0,0.00019397,2]
[373477495,1753019468210,-480.0,0.00019397,2]
[373477496,1753019468219,-480.0,0.00019397,2]
[373477497,1753019468229,-480.0,0.00019397,2]
[373477498,1753019468239,-480.0,0.00019397,2]
[373477499,1753019468248,-2593.99,0.00019397,2]
[373477500,1753019468258,-773.09,0.00019397,2]
[373477501,1753019468267,-480.0,0.00019397,2]
[373477502,1753019468277,-3225.28,0.00019397,2]
[373477503,1753019468287,-480.0,0.00019397,2]
[373477504,1753019468297,-10449.6,0.00019397,2]
[373477505,1753019468306,-480.0,0.00019397,2]
[373477506,1753019468316,-480.0,0.00019397,2]
[373477507,1753019468326,-2698.38,0.00019397,2]
[373477508,1753019468336,-480.0,0.00019397,2]
[373477509,1753019468346,-3171.67,0.00019397,2]
[373477510,1753019468356,-480.0,0.00019397,2]
[373477511,1753019468366,-480.0,0.00019397,2]
[373477512,1753019468376,-1260.52,0.00019397,2]
[373477513,1753019468386,-480.0,0.00019397,2]
[373477514,1753019468398,-480.0,0.00019397,2]
[373477515,1753019468408,-480.0,0.00019397,2]
[373477516,1753019468417,-480.0,0.00019397,2]
[373477517,1753019468427,-552.17404049,0.00019397,2]
[373477518,1753019468438,-2207.57,0.00019397,2]
[373477519,1753019468451,-480.0,0.00019397,2]
[373477520,1753019468461,-480.0,0.00019397,2]
[373477521,1753019468471,-480.0,0.00019397,2]
[373477522,1753019468480,-536.68072357,0.00019397,2]
[373477523,1753019468491,-480.0,0.00019397,2]
[373477524,1753019468501,-480.0,0.00019397,2]
[373477525,1753019468511,-480.0,0.00019397,2]
[373477526,1753019468522,-1908.42,0.00019397,2]
[373477527,1753019468532,-480.0,0.00019397,2]
[373477528,1753019468541,-480.0,0.00019397,2]
[373477529,1753019468551,-4837.24,0.00019397,2]
[373477530,1753019468560,-480.0,0.00019397,2]
[373477531,1753019468570,-480.0,0.00019397,2]
[373477532,1753019468579,-480.0,0.00019397,2]
[373477533,1753019468589,-480.0,0.00019397,2]
[373477534,1753019468599,-480.0,0.00019397,2]
[373477535,1753019468609,-480.0,0.00019397,2]
[373477536,1753019468619,-480.0,0.00019397,2]
[373477537,1753019468629,-480.0,0.00019397,2]
[373477538,1753019468640,-480.0,0.00019397,2]
[373477539,1753019468650,-480.0,0.00019397,2]
[373477540,1753019468660,-3925.2,0.00019397,2]
[373477541,1753019468669,-480.0,0.00019397,2]
[373477542,1753019468678,-480.0,0.00019397,2]
[373477543,1753019468688,-1106.38,0.00019397,2]
[373477544,1753019468697,-480.0,0.00019397,2]
[373477545,1753019468707,-480.0,0.00019397,2]
[373477546,1753019468716,-480.0,0.00019397,2]
[373477547,1753019468726,-1549.05,0.00019397,2]
[373477548,1753019468736,-480.0,0.00019397,2]
[373477549,1753019468745,-675.33,0.00019397,2]
[373477550,1753019468755,-1337.84,0.00019397,2]
[373477551,1753019468765,-480.0,0.00019397,2]
[373477552,1753019468774,-920.58,0.00019397,2]
[373477553,1753019468784,-480.0,0.00019397,2]
[373477554,1753019468793,-480.0,0.00019397,2]
[373477555,1753019468803,-4186.58,0.00019397,2]
[373477556,1753019468813,-480.0,0.00019397,2]
[373477557,1753019468822,-480.0,0.00019397,2]
[373477558,1753019468832,-575.28,0.00019397,2]
[373477559,1753019468842,-480.0,0.00019397,2]
[373477560,1753019468852,-480.0,0.00019397,2]
[373477561,1753019468862,-480.0,0.00019397,2]
[373477562,1753019468872,-480.0,0.00019397,2]
[373477563,1753019468882,-2912.14,0.00019397,2]
[373477564,1753019468892,-480.0,0.00019397,2]
[373477565,1753019468902,-480.0,0.00019397,2]
[373477566,1753019468913,-480.0,0.00019397,2]
[373477567,1753019468924,-480.0,0.00019397,2]
[373477568,1753019468935,-151.0,0.00019397,2]
[373477569,1753019468945,-480.0,0.00019397,2]
[373477570,1753019468956,-1601.32,0.00019397,2]
[373477571,1753019468966,-480.0,0.00019397,2]
[373477572,1753019468976,-480.0,0.00019397,2]
[373477573,1753019468987,-1575.77,0.00019397,2]
[373477574,1753019468998,-1649.03,0.00019397,2]
[373477575,1753019469008,-501.28,0.00019397,2]
[373477576,1753019469017,-480.0,0.00019397,2]
[373477577,1753019469027,-480.0,0.00019397,2]
[373477578,1753019469037,-151.0,0.00019397,2]
[373477579,1753019469047,-480.0,0.00019397,2]
[373477580,1753019469056,-480.0,0.00019397,2]
[373477581,1753019469066,-480.0,0.00019397,2]
[373477582,1753019469076,-480.0,0.00019397,2]
[373477583,1753019469086,-480.0,0.00019397,2]
[373477584,1753019469097,-16754.36,0.00019397,2]
[373477585,1753019469106,-1937.56,0.00019397,2]
[373477586,1753019469116,-480.0,0.00019397,2]
[373477587,1753019469126,-480.0,0.00019397,2]
[373477588,1753019469136,-1894.53,0.00019397,2]
[373477589,1753019469146,-480.0,0.00019397,2]
[373477590,1753019469155,-480.0,0.00019397,2]
[373477591,1753019469164,-480.0,0.00019397,2]
[373477592,1753019469175,-597.32,0.00019397,2]
[373477593,1753019469185,-480.0,0.00019397,2]
[373477594,1753019469195,-480.0,0.00019397,2]
[373477595,1753019469205,-480.0,0.00019397,2]
[373477596,1753019469215,-480.0,0.00019397,2]
[373477597,1753019469225,-480.0,0.00019397,2]
[373477598,1753019469234,-673.9,0.00019397,2]
[373477599,1753019469243,-480.0,0.00019397,2]
[373477600,1753019469253,-480.0,0.00019397,2]
[373477601,1753019469262,-480.0,0.00019397,2]
[373477602,1753019469272,-480.0,0.00019397,2]
[373477603,1753019469283,-1980.55,0.00019397,2]
[373477604,1753019469294,-480.0,0.00019397,2]
[373477605,1753019469304,-155.332569,0.00019397,2]
[373477606,1753019469314,-1244.68,0.00019397,2]
[373477607,1753019469324,-480.0,0.00019397,2]
[373477608,1753019469334,-480.0,0.00019397,2]
[373477609,1753019469344,-480.0,0.00019397,2]
[373477610,1753019469354,-480.0,0.00019397,2]
[373477611,1753019469365,-480.0,0.00019397,2]
[373477612,1753019469375,-151.0,0.00019397,2]
[373477613,1753019469385,-191.494678,0.00019397,2]
[373477614,1753019469396,-480.0,0.00019397,2]
[373477615,1753019469406,-480.0,0.00019397,2]
[373477616,1753019469416,-480.0,0.00019397,2]
[373477617,1753019469426,-480.0,0.00019397,2]
[373477618,1753019469437,-550.73,0.00019397,2]
[373477619,1753019469449,-480.0,0.00019397,2]
[373477620,1753019469459,-480.0,0.00019397,2]
[373477621,1753019469469,-1245.96,0.00019397,2]
[373477622,1753019469479,-871.27,0.00019397,2]
[373477623,1753019469490,-7394.507718,0.00019397,2]
[373477624,1753019469500,-6803.71,0.00019397,2]
[373477625,1753019469510,-480.0,0.00019397,2]
[373477626,1753019469521,-480.0,0.00019397,2]
[373477627,1753019469530,-7666.050453,0.00019397,2]
[373477628,1753019469539,-480.0,0.00019397,2]
[373477629,1753019469549,-1360.71,0.00019397,2]
[373477630,1753019469559,-1112.24,0.00019397,2]
[373477631,1753019469569,-423.88496287,0.00019397,2]
[373477632,1753019469580,-480.0,0.00019397,2]
[373477633,1753019469590,-579.47,0.00019397,2]
[373477634,1753019469599,-2360.18,0.00019397,2]
[373477635,1753019469609,-480.0,0.00019397,2]
[373477636,1753019469619,-1144.57,0.00019397,2]
[373477637,1753019469628,-709.9,0.00019397,2]
[373477638,1753019469638,-480.0,0.00019397,2]
[373477639,1753019469649,-3060.53,0.00019397,2]
[373477640,1753019469658,-957.17,0.00019397,2]
[373477641,1753019469669,-480.0,0.00019397,2]
[373477642,1753019469678,-480.0,0.00019397,2]
[373477643,1753019469689,-1099.37,0.00019397,2]
[373477644,1753019469699,-480.0,0.00019397,2]
[373477645,1753019469709,-1014.42,0.00019397,2]
[373477646,1753019469719,-1194.62,0.00019397,2]
[373477647,1753019469729,-666.51,0.00019397,2]
[373477648,1753019469739,-480.0,0.00019397,2]
[373477649,1753019469749,-1224.46,0.00019397,2]
[373477650,1753019469758,-480.0,0.00019397,2]
[373477651,1753019469768,-622.5,0.00019397,2]
[373477652,1753019469777,-480.0,0.00019397,2]
[373477653,1753019469787,-480.0,0.00019397,2]
[373477654,1753019469797,-3588.19,0.00019397,2]
[373477655,1753019469806,-7028.034664,0.00019397,2]
[373477656,1753019469816,-480.0,0.00019397,2]
[373477657,1753019469826,-4161.68,0.00019397,2]
[373477658,1753019469836,-480.0,0.00019397,2]
[373477659,1753019469846,-480.0,0.00019397,2]
[373477660,1753019469856,-1009.8,0.00019397,2]
[373477661,1753019469866,-480.0,0.00019397,2]
[373477662,1753019469875,-480.0,0.00019397,2]
[373477663,1753019469885,-480.0,0.00019397,2]
[373477664,1753019469895,-5042.4,0.00019397,2]
[373477665,1753019469906,-759.09,0.00019397,2]
[373477666,1753019469916,-480.0,0.00019397,2]
[373477667,1753019469926,-480.0,0.00019397,2]
[373477668,1753019469937,-480.0,0.00019397,2]
[373477669,1753019469947,-480.0,0.00019397,2]
[373477670,1753019469956,-985.56034,0.00019397,2]
[373477671,1753019469966,-985.56034,0.00019397,2]
[373477672,1753019469976,-480.0,0.00019397,2]
[373477673,1753019469985,-480.0,0.00019397,2]
[373477674,1753019469995,-1765.61,0.00019397,2]
[373477675,1753019470004,-480.0,0.00019397,2]
[373477676,1753019470014,-892.48,0.00019397,2]
[373477677,1753019470024,-2738.0,0.00019397,2]
[373477678,1753019470033,-480.0,0.00019397,2]
[373477679,1753019470043,-447.681769,0.00019397,2]
[373477680,1753019470052,-480.0,0.00019397,2]
[373477681,1753019470061,-985.56034,0.00019397,2]
[373477682,1753019470070,-480.0,0.00019397,2]
[373477683,1753019470080,-985.56034,0.00019397,2]
[373477684,1753019470090,-2154.18,0.00019397,2]
[373477685,1753019470099,-480.0,0.00019397,2]
[373477686,1753019470109,-480.0,0.00019397,2]
[373477687,1753019470118,-3701.58,0.00019397,2]
[373477688,1753019470127,-563.37,0.00019397,2]
[373477689,1753019470137,-1224.02,0.00019397,2]
[373477690,1753019470148,-480.0,0.00019397,2]
[373477691,1753019470157,-480.0,0.00019397,2]
[373477692,1753019470167,-447.681769,0.00019397,2]
[373477693,1753019470177,-480.0,0.00019397,2]
[373477694,1753019470186,-1317.6,0.00019397,2]
[373477695,1753019470196,-1417.35,0.00019397,2]
[373477696,1753019470206,-151.0,0.00019397,2]
[373477697,1753019470216,-151.0,0.00019397,2]
[373477698,1753019470225,-494.3,0.00019397,2]
[373477699,1753019470235,-2516.48,0.00019397,2]
[373477700,1753019470244,-1918.3,0.00019397,2]
[373477701,1753019470253,-480.0,0.00019397,2]
[373477702,1753019470262,-480.0,0.00019397,2]
[373477703,1753019470272,-1280.96,0.00019397,2]
[373477704,1753019470281,-2675.44,0.00019397,2]
[373477705,1753019470290,-480.0,0.00019397,2]
[373477706,1753019470300,-1639.88,0.00019397,2]
[373477707,1753019470310,-1234.43,0.00019397,2]
[373477708,1753019470319,-480.0,0.00019397,2]
[373477709,1753019470328,-480.0,0.00019397,2]
[373477710,1753019470337,-480.0,0.00019397,2]
[373477711,1753019470347,-480.0,0.00019397,2]
[373477712,1753019470356,-480.0,0.00019397,2]
[373477713,1753019470442,-151.0,0.00019397,2]
[373477714,1753019470457,-151.0,0.00019397,2]
[373477715,1753019470467,-480.0,0.00019397,2]
[373477716,1753019470477,-2371.21,0.00019397,2]
[373477717,1753019470493,-151.0,0.00019397,2]
[373477718,1753019470504,-180.716816,0.00019397,2]
[373477719,1753019470515,-480.0,0.00019397,2]
[373477720,1753019470528,-4290.9,0.00019397,2]
[373477721,1753019470540,-1781.89,0.00019397,2]
[373477722,1753019470552,-480.0,0.00019397,2]
[373477723,1753019470563,-2112.39,0.00019397,2]
[373477724,1753019470574,-480.0,0.00019397,2]
[373477725,1753019470588,-673.12,0.00019397,2]
[373477726,1753019470599,-480.0,0.00019397,2]
[373477727,1753019470615,-480.0,0.00019397,2]
[373477728,1753019470626,-578.43,0.00019397,2]
[373477729,1753019470637,-509.06,0.00019397,2]
[373477730,1753019470650,-480.0,0.00019397,2]
[373477731,1753019470660,-686.73,0.00019397,2]
[373477732,1753019470670,-1034.48,0.00019397,2]
[373477733,1753019470680,-1841.2,0.00019397,2]
[373477734,1753019470690,-151.0,0.00019397,2]
[373477735,1753019470700,-810.97,0.00019397,2]
[373477736,1753019470710,-480.0,0.00019397,2]
[373477737,1753019470721,-151.0,0.00019397,2]
[373477738,1753019470730,-2302.39,0.00019397,2]
[373477739,1753019470740,-480.0,0.00019397,2]
[373477740,1753019470750,-480.0,0.00019397,2]
[373477741,1753019470760,-453.69561645,0.00019397,2]
[373477742,1753019470770,-1656.2,0.00019397,2]
[373477743,1753019470781,-480.0,0.00019397,2]
[373477744,1753019470791,-480.0,0.00019397,2]
[373477745,1753019470800,-1830.19,0.00019397,2]
[373477746,1753019470809,-1875.92,0.00019397,2]
[373477747,1753019470818,-184.53021485,0.00019397,2]
[373477748,1753019470828,-510.33,0.00019397,2]
[373477749,1753019470837,-1530.02,0.00019397,2]
[373477750,1753019470846,-480.0,0.00019397,2]
[373477751,1753019470856,-4600.51,0.00019397,2]
[373477752,1753019470865,-480.0,0.00019397,2]
[373477753,1753019470874,-480.0,0.00019397,2]
[373477754,1753019470884,-1122.81,0.00019397,2]
[373477755,1753019470895,-678.36,0.00019397,2]
[373477756,1753019470905,-480.0,0.00019397,2]
[373477757,1753019470915,-755.77,0.00019397,2]
[373477758,1753019470924,-480.0,0.00019397,2]
[373477759,1753019470934,-3405.09,0.00019397,2]
[373477760,1753019470943,-1854.23,0.00019397,2]
[373477761,1753019470953,-929.12,0.00019397,2]
[373477762,1753019470962,-480.0,0.00019397,2]
[373477763,1753019470971,-480.0,0.00019397,2]
[373477764,1753019470980,-1480.72155,0.0001942,2]
[373477765,1753019470990,-438.41449106,0.00019431,2]
[373477766,1753019470999,-666.0,0.00019505,2]
[373477767,1753019471009,-500.0,0.00019505,2]
[373477768,1753019471018,-500.0,0.00019505,2]
[373477769,1753019471027,-500.0,0.00019505,2]
[373477770,1753019471036,-151.0,0.00019506,2]
[373477771,1753019471045,-151.0,0.00019506,2]
[373477772,1753019471054,-151.0,0.00019506,2]
[373477773,1753019471063,-151.0,0.00019506,2]
[373477774,1753019471072,-151.0,0.00019506,2]
[373477775,1753019471081,-151.0,0.00019506,2]
[373477776,1753019471091,-151.0,0.00019506,2]
[373477777,1753019471100,-151.0,0.00019506,2]
[373477778,1753019471110,-152.422035,0.00019506,2]
[373477779,1753019471118,-152.422035,0.00019506,2]
[373477780,1753019471128,-151.0,0.00019506,2]
[373477781,1753019471138,-151.0,0.00019506,2]
[373477782,1753019471150,-309.984824,0.00019506,2]
[373477783,1753019471159,-309.984824,0.00019506,2]
[373477784,1753019471169,-151.0,0.00019506,2]
[373477785,1753019471178,-151.0,0.00019506,2]
[373477786,1753019471187,-151.0,0.00019506,2]
[373477787,1753019471196,-192.145489,0.00019506,2]
[373477788,1753019471206,-151.0,0.00019506,2]
[373477789,1753019471215,-151.0,0.00019506,2]
[373477790,1753019471224,-151.0,0.00019506,2]
[373477791,1753019471233,-151.0,0.00019506,2]
[373477792,1753019471242,-480.0,0.00019506,2]
[373477793,1753019471251,-220.393534,0.00019506,2]
[373477794,1753019471260,-151.0,0.00019506,2]
[373477795,1753019471269,-152.170647,0.00019506,2]
[373477796,1753019471278,-178.669679,0.00019506,2]
[373477797,1753019471287,-178.669679,0.00019506,2]
[373477798,1753019471297,-480.0,0.00019506,2]
[373477799,1753019471306,-480.0,0.00019506,2]
[373477800,1753019471316,-480.0,0.00019506,2]
[373477801,1753019471326,-480.0,0.00019506,2]
[373477802,1753019471336,-151.0,0.00019506,2]
[373477803,1753019471345,-369.47,0.00019506,2]
[373477804,1753019471355,-481.82,0.00019506,2]
[373477805,1753019471365,-152.604864,0.00019506,2]
[373477806,1753019471376,-340.0,0.00019506,2]
[373477807,1753019471388,-480.0,0.00019506,2]
[373477808,1753019471400,-151.0,0.00019506,2]
[373477809,1753019471409,-240.740834,0.00019506,2]
[373477810,1753019471419,-340.0,0.00019506,2]
[373477811,1753019471428,-480.0,0.00019506,2]
[373477812,1753019471438,-480.0,0.00019506,2]
[373477813,1753019471452,-480.0,0.00019506,2]
[373477814,1753019471461,-480.0,0.00019506,2]
[373477815,1753019471471,-480.0,0.00019506,2]
[373477816,1753019471481,-480.0,0.00019506,2]
[373477817,1753019471491,-480.0,0.00019506,2]
[373477818,1753019471500,-480.0,0.00019506,2]
[373477819,1753019471510,-480.0,0.00019506,2]
[373477820,1753019471520,-151.0,0.00019506,2]
[373477821,1753019471530,-178.80201,0.00019506,2]
[373477822,1753019471539,-480.0,0.00019506,2]
[373477823,1753019471549,-151.0,0.00019506,2]
[373477824,1753019471558,-480.0,0.00019506,2]
[373477825,1753019471568,-340.0,0.00019506,2]
[373477826,1753019471578,-340.0,0.00019506,2]
[373477827,1753019471588,-151.0,0.00019506,2]
[373477828,1753019471598,-480.0,0.00019506,2]
[373477829,1753019471610,-480.0,0.00019506,2]
[373477830,1753019471619,-340.0,0.00019506,2]
[373477831,1753019471628,-480.0,0.00019506,2]
[373477832,1753019471638,-340.0,0.00019506,2]
[373477833,1753019471649,-480.0,0.00019506,2]
[373477834,1753019471658,-480.0,0.00019506,2]
[373477835,1753019471668,-480.0,0.00019506,2]
[373477836,1753019471678,-151.0,0.00019506,2]
[373477837,1753019471687,-340.0,0.00019506,2]
[373477838,1753019471696,-480.0,0.00019506,2]
[373477839,1753019471706,-480.0,0.00019506,2]
[373477840,1753019471715,-480.0,0.00019506,2]
[373477841,1753019471725,-340.0,0.00019506,2]
[373477842,1753019471735,-340.0,0.00019506,2]
[373477843,1753019471744,-480.0,0.00019506,2]
[373477844,1753019471753,-480.0,0.00019506,2]
[373477845,1753019471762,-151.0,0.00019506,2]
[373477846,1753019471772,-480.0,0.00019506,2]
[373477847,1753019471781,-480.0,0.00019506,2]
[373477848,1753019471790,-340.0,0.00019506,2]
[373477849,1753019471799,-480.0,0.00019506,2]
[373477850,1753019471808,-310.0,0.00019506,2]
[373477851,1753019471817,-340.0,0.00019506,2]
[373477852,1753019471827,-480.0,0.00019506,2]
[373477853,1753019471836,-480.0,0.00019506,2]
[373477854,1753019471845,-480.0,0.00019506,2]
[373477855,1753019471854,-480.0,0.00019506,2]
[373477856,1753019471863,-340.0,0.00019506,2]
[373477857,1753019471872,-480.0,0.00019506,2]
[373477858,1753019471882,-480.0,0.00019506,2]
[373477859,1753019471891,-443.81,0.00019506,2]
[373477860,1753019471901,-480.0,0.00019506,2]
[373477861,1753019471911,-151.0,0.00019506,2]
[373477862,1753019471921,-480.0,0.00019506,2]
[373477863,1753019471930,-480.0,0.00019506,2]
[373477864,1753019471940,-480.0,0.00019506,2]
[373477865,1753019471949,-196.7,0.00019506,2]
[373477866,1753019471959,-340.0,0.00019506,2]
[373477867,1753019471968,-445.51477412,0.00019506,2]
[373477868,1753019471977,-480.0,0.00019506,2]
[373477869,1753019471987,-420.0,0.00019506,2]
[373477870,1753019471997,-368.35,0.00019506,2]
[373477871,1753019472006,-480.0,0.00019506,2]
[373477872,1753019472015,-480.0,0.00019506,2]
[373477873,1753019472024,-207.367706,0.00019506,2]
[373477874,1753019472033,-480.0,0.00019506,2]
[373477875,1753019472043,-207.367706,0.00019506,2]
[373477876,1753019472052,-480.0,0.00019506,2]
[373477877,1753019472061,-300.0,0.00019506,2]
[373477878,1753019472071,-340.0,0.00019506,2]
[373477879,1753019472080,-340.0,0.00019506,2]
[373477880,1753019472089,-480.0,0.00019506,2]
[373477881,1753019472098,-480.0,0.00019506,2]
[373477882,1753019472107,-151.0,0.00019506,2]
[373477883,1753019472117,-340.0,0.00019506,2]
[373477884,1753019472126,-340.0,0.00019506,2]
[373477885,1753019472136,-480.0,0.00019506,2]
[373477886,1753019472145,-991.02,0.00019506,2]
[373477887,1753019472154,-323.573606,0.00019506,2]
[373477888,1753019472163,-151.0,0.00019506,2]
[373477889,1753019472173,-480.0,0.00019506,2]
[373477890,1753019472182,-667.66,0.00019506,2]
[373477891,1753019472191,-480.0,0.00019506,2]
[373477892,1753019472200,-151.0,0.00019506,2]
[373477893,1753019472209,-151.0,0.00019506,2]
[373477894,1753019472218,-340.0,0.00019506,2]
[373477895,1753019472228,-151.0,0.00019506,2]
[373477896,1753019472237,-151.0,0.00019506,2]
[373477897,1753019472246,-480.0,0.00019506,2]
[373477898,1753019472255,-480.0,0.00019506,2]
[373477899,1753019472264,-151.0,0.00019506,2]
[373477900,1753019472273,-151.0,0.00019506,2]
[373477901,1753019472282,-573.77,0.00019506,2]
[373477902,1753019472291,-759.54,0.00019506,2]
[373477903,1753019472300,-480.0,0.00019506,2]
[373477904,1753019472309,-480.0,0.00019506,2]
[373477905,1753019472318,-480.0,0.00019506,2]
[373477906,1753019472328,-480.0,0.00019506,2]
[373477907,1753019472337,-234.376046,0.00019506,2]
[373477908,1753019472346,-480.0,0.00019506,2]
[373477909,1753019472355,-480.0,0.00019506,2]
[373477910,1753019472364,-5060.37,0.00019506,2]
[373477911,1753019472374,-817.3,0.00019506,2]
[373477912,1753019472383,-1132.31,0.00019506,2]
[373477913,1753019472393,-480.0,0.00019506,2]
[373477914,1753019472402,-480.0,0.00019506,2]
[373477915,1753019472412,-480.0,0.00019506,2]
[373477916,1753019472421,-151.0,0.00019506,2]
[373477917,1753019472431,-480.0,0.00019506,2]
[373477918,1753019472443,-480.0,0.00019506,2]
[373477919,1753019472455,-480.0,0.00019506,2]
[373477920,1753019472464,-561.39,0.00019506,2]
[373477921,1753019472474,-480.0,0.00019506,2]
[373477922,1753019472483,-1056.44,0.00019506,2]
[373477923,1753019472492,-1722.64,0.00019506,2]
[373477924,1753019472501,-561.76,0.00019506,2]
[373477925,1753019472510,-612.24,0.00019506,2]
[373477926,1753019472519,-284.88,0.00019506,2]
[373477927,1753019472531,-1184.53,0.00019506,2]
[373477928,1753019472541,-555.0040159,0.00019506,2]
[373477929,1753019472550,-480.0,0.00019506,2]
[373477930,1753019472560,-480.0,0.00019506,2]
[373477931,1753019472569,-708.25,0.00019506,2]
[373477932,1753019472578,-640.15,0.00019506,2]
[373477933,1753019472587,-480.0,0.00019506,2]
[373477934,1753019472596,-654.33,0.00019506,2]
[373477935,1753019472606,-525.6,0.00019506,2]